Cogmind - Beta 13 @@@ ROGUE MODE // 2024.03.30 @ 18:36:18 Player: _An Result: Destroyed by IF-HLI(R) with Subdweller Beam Cannon Performance ------------- Evolutions (0) 0 Regions Visited (2) 400 Robots Destroyed (13) 65 Value Destroyed (285) 285 Prototype IDs (10) 200 Alien Tech Used (0) 0 Bonus (0) 0 TOTAL SCORE: 950 Bonus ------- None Cogmind --------- Core Integrity 0/250 Matter 300/300 Energy 100/100 System Corruption 1% Temperature Cool (9) Movement Core (50) Location -10/Subcaves Parts ------- > --- POWER (1) -------- (None) > --- PROPULSION (2) --- (None) > --- UTILITY (2) ------ Signal Interpreter > --- WEAPON (2) ------- (None) > --- INVENTORY (5) ---- Heat Sink Sensor Array Trap Extractor (0/4) Power Bank Peak State ------------ > --- POWER ------------ Light Ion Engine > --- PROPULSION ------- Wheel Wheel > --- UTILITY ---------- Heat Sink Shield Generator > --- WEAPON ----------- Small Laser Assault Rifle > --- INVENTORY -------- Ion Engine Signal Interpreter [Rating: 8] Favorites ----------- Power Ion Engine Engine Ion Engine Propulsion Hover Unit Wheel Wheel Hover Unit Hover Unit Utility Signal Interpreter Device Heat Sink Processor Signal Interpreter Protection Light Armor Plating Weapon Assault Rifle Energy Gun EM Pulse Gun Ballistic Gun Assault Rifle Special Weapon Mining Laser Build | -11 -10 -10 ------- Run | Yrd Mat Sub Slots Evolved . | . . . Power . | . . . Propulsion . | . . . Utility . | . . . Weapon . | . . . Parts Attached 16 | 6 9 1 Power 2 | 1 1 . Engine 2 | 1 1 . Core . | . . . Reactor . | . . . Propulsion 4 | 2 2 . Treads . | . . . Leg . | . . . Wheel 2 | 2 . . Hover 2 | . 2 . Flight . | . . . Utility 4 | 1 3 . Device 2 | 1 1 . Storage . | . . . Processor 1 | . 1 . Hackware . | . . . Protection 1 | . 1 . Artifact . | . . . Weapon 6 | 2 3 1 Energy Gun 3 | 1 1 1 Energy Cannon . | . . . Ballistic Gun 2 | 1 1 . Ballistic Cannon . | . . . Launcher . | . . . Special Weapon 1 | . 1 . Impact Weapon . | . . . Slashing Weapon . | . . . Piercing Weapon . | . . . Special Melee Weapon . | . . . Unidentified Prototypes . | . . . Corrupted Parts 1 | . 1 . System Corruption 1 | . 1 . Parts Lost 9 | . 3 6 Power 2 | . 1 1 Propulsion 3 | . 1 2 Utility 1 | . 1 . Weapon 3 | . . 3 Highest Loss Streak 4 | . 2 4 To Critical Strikes . | . . . Average Slot Usage (%) 86 | . 91 74 Engine 12 | . 13 10 Wheel 11 | . 15 . Hover 16 | . 12 27 Device 7 | . 9 . Processor 10 | . 9 14 Protection 1 | . 1 . Energy Gun 9 | . 12 1 Ballistic Gun 12 | . 13 10 Special Weapon 3 | . 1 10 Naked Turns . | . . . Heaviest Build 12 | 7 12 8 Greatest Support 20 | 20 20 12 Greatest Overweight (x) . | . . . Average Overweight (x) . | . . . Largest Inventory Capacity 5 | 5 5 5 Average Capacity 5 | 5 5 5 Most Carried 5 | 1 5 5 Average Carried 4 | . 4 4 Final Capacity 5 | 5 5 5 Final Carried 5 | 1 5 4 Class Distribution -------------------- 100% | Mutant Dominant Class ---------------- Mutant | -10/Materials Mutant | -10/Subcaves Resources | -11 -10 -10 ----------- Run | Yrd Mat Sub Matter Collected 464 | 275 155 34 Remotely . | . . . Salvage Created 401 | 48 353 . Parts 30 | 4 26 . Haulers Intercepted . | . . . Recyclers Shooed . | . . . Parts Field Recycled . | . . . Retrieved Matter . | . . . Parts Self-Destructed 2 | . . 2 Prevented . | . . . Kills | -11 -10 -10 ------- Run | Yrd Mat Sub Combat Hostiles Destroyed 9 | 1 8 . Guns 9 | 1 8 . Classes Destroyed 5 | 1 4 . Worker 1 | . 1 . Builder 1 | . 1 . Watcher 2 | . 2 . Swarmer 3 | . 3 . Grunt 6 | 1 5 . Best Kill Streak 3 | 1 3 . Combat Bots Only 3 | 1 3 . Max Kills in Single Turn 2 | 1 2 . Gunslinging 1 | . 1 . Exploded . | . . . Melee . | . . . Uniques/NPCs Destroyed . | . . . Combat | -11 -10 -10 -------- Run | Yrd Mat Sub Hostile Shots Fired 69 | 7 37 25 Missed 21 | 1 10 10 Damage Taken 689 | 69 264 356 Core 258 | 24 52 182 Absorbed by Shields 16 | . 16 . Core Remaining (%) 90 | 90 . . Volleys Fired 54 | 5 43 6 Largest 2 | 2 2 1 Hottest 100 | 60 100 100 Shots Fired 97 | 10 81 6 Gun 86 | 10 75 1 Cannon . | . . . Launcher . | . . . Special 11 | . 6 5 Kinetic 43 | 5 38 . Thermal 16 | 5 6 5 Explosive . | . . . Electromagnetic 38 | . 37 1 Robot Hit Streak 14 | 3 14 . Robot Miss Streak 3 | 2 3 . Penetration Max . | . . . Secondary Targets 3 | . 3 . Max Gunslinging Chain 1 | . 1 . Shots Hit Robots 41 | 5 36 . Core Hits 20 | 2 18 . Critical Kills . | . . . Critical Parts Destroyed . | . . . Critical Strikes . | . . . Melee Attacks . | . . . Impact . | . . . Slashing . | . . . Piercing . | . . . Sneak Attacks . | . . . Combat Hostiles . | . . . Follow-up Attacks . | . . . Damage Inflicted 562 | 62 500 . Guns 562 | 62 500 . Cannons . | . . . Explosions . | . . . Melee . | . . . Ramming . | . . . Kinetic 272 | 52 220 . Thermal 10 | 10 . . Explosive . | . . . Electromagnetic 280 | . 280 . Impact . | . . . Slashing . | . . . Piercing . | . . . Highest Corruption 1 | . 1 1 Average Corruption 1 | . 1 1 Corruption Purged . | . . . Corruption Blocked . | . . . Effects 4 | . 2 2 Message Errors 2 | . 1 1 Data Loss (major) 1 | . . 1 Misfires 1 | . 1 . Overload Shots . | . . . Overflow Damage . | . . . Projectiles . | . . . Explosions . | . . . Melee . | . . . Knockbacks . | . . . Impact . | . . . Kinetic . | . . . Secondary . | . . . Self-Inflicted Damage . | . . . Shots . | . . . Rammed . | . . . Targets Rammed . | . . . Kicked . | . . . Crushed . | . . . Highest Temperature 81 | 36 81 . Average Temperature 32 | 20 34 . Received Heat Transfer 267 | 36 123 108 Siege Activations . | . . . Robots Corrupted . | . . . Combat Hostiles . | . . . Parts Fried . | . . . Impact Corruptions . | . . . Robots Melted . | . . . Combat Hostiles . | . . . Parts Melted . | . . . Heat Transferred 25 | 25 . . Parts Sabotaged . | . . . Parts Stolen . | . . . Parts Stripped . | . . . Power Chain Reactions . | . . . Alert | -11 -10 -10 ------- Run | Yrd Mat Sub Peak Influence 219 | 20 219 . Initial 13 | . 13 . Average 60 | 3 65 . Maximum Alert Level 1 | . 1 . Low Security (%) 96 | 100 96 . Level 1 3 | . 3 . Level 2 . | . . . Level 3 . | . . . Level 4 . | . . . Level 5 . | . . . High Security . | . . . Max Security . | . . . Squads Dispatched 2 | . 2 . Investigation 1 | . 1 . Extermination . | . . . Reinforcement 1 | . 1 . Assault . | . . . Garrison . | . . . Intercept . | . . . Searches Triggered . | . . . Construction Impeded . | . . . Haulers Reinforced . | . . . Active Scanning Responses . | . . . Cargo Convoy Interrupts . | . . . Stealth | -11 -10 -10 --------- Run | Yrd Mat Sub Distress Signals 2 | . 2 . Communications Jammed . | . . . Distress Signals . | . . . Times Spotted 16 | 1 12 3 Peak Tracking Total 4 | 1 4 3 Tactical Retreats 1 | . . 1 Traps | -11 -10 -10 ------- Run | Yrd Mat Sub Traps Triggered . | . . . Indirectly . | . . . Trap Hack Attempts . | . . . Triggered . | . . . Disarmed . | . . . Reprogrammed . | . . . Reused . | . . . Traps Extracted . | . . . Installed . | . . . Triggered . | . . . Machines | -11 -10 -10 ---------- Run | Yrd Mat Sub Machines Disabled . | . . . Max in Single Turn . | . . . Machines Repaired . | . . . Machines Dismantled . | . . . Machines Sabotaged . | . . . Overloaded Fab Kills . | . . . Hacking | -11 -10 -10 --------- Run | Yrd Mat Sub Machines Accessed 8 | . 7 1 Terminals 5 | . 5 . Fabricators . | . . . Repair Stations 1 | . 1 . Recycling Units 1 | . 1 . Scanalyzers . | . . . Garrison Access . | . . . Total Hacks 25 | . 16 9 Successful 15 | . 6 9 Failed 10 | . 10 . Catastrophic 2 | . 2 . Database Lockouts . | . . . Manual 20 | . 12 8 Terminals 12 | . 12 . Fabricators . | . . . Repair Stations 2 | . 2 . Recycling Units 2 | . 2 . Scanalyzers . | . . . Garrison Access . | . . . Terminal Hacks 9 | . . 9 Record 8 | . . 8 Derelict Proto ID Bank 1 | . . 1 Fabricator Hacks . | . . . Repair Station Hacks . | . . . Recycling Unit Hacks 2 | . 2 . Report Inventory 1 | . 1 . Retrieve Components 1 | . 1 . Scanalyzer . | . . . Garrison Access Hacks . | . . . Unauthorized Hacks 4 | . 4 . Terminals 4 | . 4 . Botnet 4 | . 4 . Fabricators . | . . . Repair Stations . | . . . Recycling Units . | . . . Scanalyzers . | . . . Garrison Access . | . . . Data Cores Recovered . | . . . Used . | . . . Hacking Detections 6 | . 6 . Full Trace Events 1 | . 1 . Feedback Events . | . . . Feedback Blocked . | . . . Robot Schematics Acquired . | . . . Robots Built . | . . . Authchips . | . . . Time . | . . . Total Robot Build Rating . | . . . Part Schematics Acquired . | . . . Parts Built . | . . . Authchips . | . . . Time . | . . . Total Part Build Rating . | . . . Parts Repaired . | . . . Time . | . . . Parts Recycled . | . . . Recycled Matter . | . . . Retrieved Matter . | . . . Retrieved Components 3 | . 3 . Parts Scanalyzed . | . . . Part Schematics Acquired . | . . . Parts Damaged . | . . . Bothacking | -11 -10 -10 ------------ Run | Yrd Mat Sub Used RIF Installer . | . . . Robots Hacked . | . . . Non-combat . | . . . Combat . | . . . Robot Hacks Applied . | . . . Relay Couplers Released . | . . . Fabnet Peak Effective % . | . . . Robots Rewired . | . . . Allies Hacked . | . . . Hacks Repelled . | . . . Allies | -11 -10 -10 -------- Run | Yrd Mat Sub Total Allies . | . . . Largest Group . | . . . Highest-Rated Group . | . . . Highest-Rated Ally . | . . . Total Orders . | . . . Ally Attacks . | . . . Total Damage . | . . . Kills . | . . . Allies Corrupted . | . . . Allies Melted . | . . . Intel | -11 -10 -10 ------- Run | Yrd Mat Sub Robot Analysis Total . | . . . Derelict Logs Recovered 1 | . . 1 Drone Launches . | . . . Drone Recoveries . | . . . Exploration | -11 -10 -10 ------------- Run | Yrd Mat Sub Turns Passed 1069 | 68 746 255 Spaces Moved 1189 | 60 765 364 Core 15 | 15 . . Treads . | . . . Legs . | . . . Wheels 383 | 45 338 . Hover 791 | . 427 364 Flight . | . . . Fastest Speed 50 | 50 56 56 Average Speed 63 | 72 66 56 Slowest Speed 80 | 80 80 56 Overloaded Moves . | . . . Propulsion Burnouts . | . . . Robots Hopped . | . . . Cave-ins Triggered . | . . . Exploration Rate (%) 41 | 5 88 32 Regions Visited 2 Branch Regions 1 Pre-discovered Areas . | . . . Known Exits Taken 1 | . 1 . Unknown Exits Taken 1 | 1 . . Scrap Searched . | . . . Spaces Dug 6 | . 6 . Terrain Destroyed 6 | . 6 . Melee . | . . . Projectile 6 | . 6 . AOE . | . . . Terrain Rammed . | . . . Walls Destroyed . | . . . Machines Disabled . | . . . Actions | -11 -10 -10 --------- Run | Yrd Mat Sub Total 1382 | 71 911 400 Wait 104 | . 77 27 Move 1187 | 59 764 364 Hop . | . . . Pick Up 11 | 1 9 1 Fast Attach 10 | 6 4 . Attach 6 | . 5 1 Detach 3 | . 3 . Swap . | . . . Drop 7 | . 6 1 Fire 54 | 5 43 6 Melee . | . . . Ram . | . . . Kick . | . . . Crush . | . . . Escape Stasis . | . . . Rewire . | . . . Trap . | . . . Miscellaneous . | . . . Route ------- -11/Scrapyard -10/Materials (discovered 4 exits: *Mat x2 / *Min / *Sub) -10/Subcaves (discovered 1 exit: *Mat) History --------- Turn | Location | Event 2 | -11/Scrapyard | Met Revision 17 39 | -11/Scrapyard | Discovered new exit (range 8) 69 | -11/Scrapyard | Entered Materials 174 | -10/Materials | Discovered new exit (range 15) 298 | -10/Materials | Discovered new exit (range 16) 312 | -10/Materials | Identified exit to Materials 332 | -10/Materials | Build established: Mutant 398 | -10/Materials | Identified exit to Mines 607 | -10/Materials | Discovered exit to Materials (range 14) 812 | -10/Materials | Discovered new exit (range 8) 814 | -10/Materials | Identified exit to Subcaves 815 | -10/Materials | Entered Subcaves 820 | -10/Subcaves | Learned Materials interactive machine intel 847 | -10/Subcaves | Discovered new exit (range 11) 853 | -10/Subcaves | Identified exit to Materials 976 | -10/Subcaves | Visited 4L-MR0's lab 1007 | -10/Subcaves | Found Power Bank 1012 | -10/Subcaves | Core integrity fell below 50% 1063 | -10/Subcaves | Lost 4 parts (1p3w) 1066 | -10/Subcaves | Core integrity fell below 20% 1070 | -10/Subcaves | Destroyed by IF-HLI(R) with Subdweller Beam Cannon Last Messages --------------- 4L-MR0 mumbles: "I'm surprised some of them are even willing to come in here given their fear of my usual visitors." 4L-MR0 mumbles: "Who knows where that last prototype ended up, probably tossed aside somewhere as if it were useless junk..." 4L-MR0 cries out in pain. 4L-MR0 destroyed. Testing Chamber breached. 4L-MR0's Prototype Logs disabled. Machine disabled. Mining Laser destroyed. Subatomizers dissect the Multitool. Dropped Wheel. Acquired Power Bank. Assault Rifle destroyed. Ion Engine destroyed. EM Pulse Gun destroyed. YT-1HR(u) builds Twisted Machinery. Hover Unit destroyed. Map ----- +----------------------------------------------------+ | ?????????????????????????????????????????????????? | | ?????????????????????????????????????????????????? | | ?????????????????????????????????????????????????? | | ?????????????????????????????????????????????????? | | ?????????????????????????????????????????????????? | | ?????????????????????????????????????????????????? | | ?????????????????????????????????????????????????? | | ?????????????????????????????????????????????????? | | ?????????????????????????????????????????????????? | | ?????????????????????????????????????????????????? | | ?????????????????????????????????????????????????? | | ?????????????????????????????????????????????????? | | ?????????????????????????????????????????????????? | | ?????????????????????????????????????????????????? | | ?????????????????????????????????????????????????? | | ?????????????????????????????????????????????????? | | ?????????????????????????????????????????????????? | | ????????????????????????????????? ???????????????? | | ????????????????????????????????" #??????????????? | | ??????????????????????????????""" #??????????????? | | ??????????????????????????????""" ???????????????? | | ???######????????????????????# " ????????????????? | | #### # ##???????????????????%" #????????????????? | | ###????????????###### #????????????????? | | ##?????????###"## " ##???????????????? | | ## ####?????## @##"" ##??????????????? | | #### ###?### "##" #??????????????? | | ## # ###u R "" " #??????????????? | | ## ##" "R " #??????????????? | | ## ## """##### #??????????????? | | ##### ####### "" #???# ##??????????????? | | ##???###?????#### "" ##### ###??????????????? | | ##??????????????## " #??????????????? | | ###?????????????# ## ##??????????????? | | ##????????????# ""###### #??????????????? | | ##???????????# " #????# #??????????????? | | ##?????????# ""#????## # ##??????????????? | | #?????????# #???## # ##??????????????? | | #?????????## #???# #??????????????? | | ## #??????????######??## #??????????????? | | ??# ##??????????????????# #??????????????? | | ???###???????????????????# #?????? ???????? | | ?????????????????????????# ##???? ???????? | | ?????????????????????????# ##?? ???????? | | ?????????????????????????# #?? #??????? | | ?????????????????????????# #??? ??????? | | ?????????????????????????# ###??? ??????? | | ?????????????????????????## ##?????? ??????? | | ??????????????????????????## ##??????? ??????? | | ???????????????????????????## ##???????? #?????? | +----------------------------------------------------+ Best States ------------- Heat Dissipation 35 Energy Generation 10 Energy Capacity 250 Matter Stores 300 Matter Capacity 300 Sight Range 16 Terrain Scan Density 10 Armor Coverage 150 Evasion (%) 53 Item Schematics ----------------- None Robot Schematics ------------------ None Fabricated ------------ Nothing Alien Tech Used ----------------- None Achievements -------------- Crack Shot One Hack Too Far Quantum Hacking Uninvited Guest Challenges ------------ None Game ------ Seed ShieldShieldMonowheel Manual? 0 Play Time 00:21:41 Cumulative 0.6 hours Start 2024.03.30 @ 18:17:20 End 2024.03.30 @ 18:36:18 Sessions 1 Manual Loads 0 Difficulty Rogue Special Mode None Game No. 2 Rogue 2 Adventurer 0 Explorer 0 Win Type - Total 0 Types 0/0/0/0/0/0/0/0/0 Lore% 1 Gallery% 2 Achievement% 3 Wizard Run 0 Options --------- Layout 1 ASCII 0 Keyboard 1 Movement Numpad Keybinds 0 Fullscreen 1 Font 32/SmallcapsGlow Map View 50x35 Zoom Use 0% Tactical HUD 0 Map Filters NONE Filters NONE Steam 1 RUN: b38beb5e-d3b9-4d5d-8a54-7c8ba93fe1a8